bitfinex-derivatives/quotes_BTCF0:USTF0_20251030
["timestamp","ask_amount","ask_price","bid_price","bid_amount"]
[1761811211632,0.52202,111440.0,111430.0,0.11560262]
[1761811212044,0.52324,111440.0,111430.0,0.11560262]
[1761811212337,0.36324,111440.0,111430.0,0.0914633]
[1761811214238,0.36324,111440.0,111430.0,0.11562021]
[1761811215737,0.38845837,111440.0,111430.0,0.0613179]
[1761811216047,0.38845837,111440.0,111430.0,0.0842079]
[1761811216340,0.38845837,111440.0,111430.0,0.0832079]
[1761811216643,0.38945837,111440.0,111430.0,0.0832079]
[1761811226039,0.38945837,111440.0,111430.0,0.05905]
[1761811227246,0.36524,111440.0,111430.0,0.08320487]
[1761811227649,0.52480562,111440.0,111430.0,0.24277049]
[1761811230452,0.54902399,111440.0,111430.0,0.24277049]
[1761811230650,0.54902399,111440.0,111430.0,0.04688487]
[1761811230853,0.70858961,111440.0,111430.0,0.02415487]
[1761811231055,0.54902399,111440.0,111430.0,0.24269049]
[1761811231254,0.70858961,111440.0,111430.0,0.24269049]
[1761811231557,0.54902399,111440.0,111430.0,0.24269049]
[1761811231756,0.54902399,111440.0,111430.0,0.08312487]
[1761811232863,0.54902399,111440.0,111430.0,0.24269049]
[1761811233451,0.56902399,111440.0,111430.0,0.21980049]
[1761811233654,0.72858961,111440.0,111430.0,0.08312487]
[1761811235265,0.70858961,111440.0,111430.0,0.08312487]
[1761811235670,0.54902399,111440.0,111430.0,0.08312487]
[1761811236364,0.54902399,111440.0,111430.0,0.24269049]
[1761811236559,0.54902399,111440.0,111430.0,0.08312487]
[1761811237165,0.58131515,111440.0,111430.0,0.08312487]
[1761811238865,0.42174953,111440.0,111430.0,0.08312487]
[1761811239070,0.58131515,111440.0,111430.0,0.08312487]
[1761811239569,0.58131515,111440.0,111430.0,0.24269049]
[1761811241069,0.89082146,111440.0,111430.0,0.02415487]
[1761811241465,0.87082146,111440.0,111430.0,0.02415487]
[1761811241665,0.00244,111430.0,111420.0,1.72885379]
[1761811241866,0.85615145,111430.0,111420.0,1.56928817]
[1761811242959,1.04839707,111430.0,111420.0,1.52415487]
[1761811243166,1.04839707,111430.0,111420.0,1.52515487]
[1761811243567,1.08068823,111430.0,111420.0,1.501]
[1761811243766,1.04839707,111430.0,111420.0,0.02515487]
[1761811244357,1.18062892,111430.0,111420.0,0.02515487]
[1761811244670,0.00244,111420.0,111410.0,0.02415487]
[1761811244862,0.78659317,111420.0,111410.0,0.02415487]
[1761811245171,1.38659317,111420.0,111410.0,0.02415487]
[1761811245972,1.19677386,111420.0,111410.0,0.04672487]
[1761811246269,1.09683317,111420.0,111410.0,0.06797487]
[1761811246569,0.93730755,111420.0,111410.0,0.08118487]
[1761811246773,1.09787317,111420.0,111410.0,0.08118487]
[1761811247361,0.62902755,111420.0,111410.0,0.08118487]
[1761811247565,0.62902755,111420.0,111410.0,0.27295379]
[1761811247566,0.67452,111420.0,111410.0,0.27295379]
[1761811248169,0.36524,111420.0,111410.0,0.27295379]
[1761811248370,0.67452,111420.0,111410.0,0.27295379]
[1761811248570,0.67452,111420.0,111410.0,0.24879892]
[1761811249376,0.67452,111420.0,111410.0,0.0892333]
[1761811249577,0.83408562,111420.0,111410.0,0.24879892]
[1761811249962,0.83408562,111420.0,111410.0,0.11338404]
[1761811251966,0.99365124,111420.0,111410.0,0.11338404]
[1761811252468,0.99365124,111420.0,111410.0,0.07892404]
[1761811252673,0.99365124,111420.0,111410.0,0.02415074]
[1761811253266,0.99365124,111420.0,111410.0,0.06797074]
[1761811254476,0.99365124,111420.0,111410.0,0.04382]
[1761811254677,0.99365124,111420.0,111410.0,0.06796962]
[1761811254980,0.99365124,111420.0,111410.0,0.04382]
[1761811255277,0.99365124,111420.0,111410.0,0.06796904]
[1761811255577,1.01365124,111420.0,111410.0,0.02414904]
[1761811255971,1.11627193,111420.0,111410.0,0.02414904]
[1761811256273,0.00244,111410.0,111400.0,0.0322033]
[1761811256475,0.70237124,111410.0,111400.0,1e-08]
[1761811256680,0.00244,111400.0,111390.0,0.04830496]
[1761811256872,0.00244,111390.0,111380.0,1.72108058]
[1761811257073,0.52280562,111390.0,111380.0,1.72109901]
[1761811257274,0.52280562,111390.0,111380.0,1.67277562]
[1761811258170,0.52280562,111390.0,111380.0,1.72109481]
[1761811258375,0.52280562,111390.0,111380.0,1.72209481]
[1761811258681,0.52280562,111390.0,111380.0,1.73409518]
[1761811258881,0.36324,111390.0,111380.0,1.73409518]
[1761811259076,0.36324,111390.0,111380.0,1.8936608]
[1761811259277,0.36324,111390.0,111380.0,1.93513261]
[1761811259578,0.36324,111390.0,111380.0,2.53513261]
[1761811259579,0.67016,111390.0,111380.0,2.53513261]
[1761811259780,0.67016,111390.0,111380.0,2.44534161]
[1761811259983,0.67138,111390.0,111380.0,2.44534161]
[1761811260169,0.6726,111390.0,111380.0,1.52621037]
[1761811260370,0.83216562,111390.0,111380.0,1.68577599]
[1761811261782,0.83216562,111390.0,111380.0,1.52621037]
[1761811262083,0.83216562,111390.0,111380.0,1.68577599]
[1761811262783,0.83216562,111390.0,111380.0,1.67677562]
[1761811262982,0.83216562,111390.0,111380.0,1.51721]
[1761811263183,0.86216562,111390.0,111380.0,1.51721]
[1761811263379,1.02173124,111390.0,111380.0,1.51721]
[1761811263576,0.86216562,111390.0,111380.0,1.51721]
[1761811263779,0.96210631,111390.0,111380.0,1.51721]
[1761811263980,0.96210631,111390.0,111380.0,0.06103]
[1761811264381,0.96210631,111390.0,111380.0,1.56103]
[1761811266185,0.80254069,111390.0,111380.0,1.56103]
[1761811266384,0.86216562,111390.0,111380.0,1.72059562]
[1761811268778,0.83216562,111390.0,111380.0,1.72059562]
[1761811269486,0.83216562,111390.0,111380.0,1.56103]
[1761811269679,0.83216562,111390.0,111380.0,1.72059562]
[1761811270775,0.36324,111390.0,111380.0,1.88016124]
[1761811270979,0.67028,111390.0,111380.0,1.88016124]
[1761811271180,0.6715,111390.0,111380.0,1.88016124]
[1761811271380,0.6715,111390.0,111380.0,1.72069948]
[1761811272191,0.67272,111390.0,111380.0,1.72069948]
[1761811272981,0.67272,111390.0,111380.0,1.56103]
[1761811273185,0.83238948,111390.0,111380.0,0.06103]
[1761811273792,0.86238948,111390.0,111380.0,0.06103]
[1761811276984,0.96233017,111390.0,111380.0,0.06103]
[1761811277593,1.12467965,111390.0,111380.0,0.004]
[1761811277796,0.96501017,111390.0,111380.0,0.004]
[1761811278088,0.9865521,111390.0,111380.0,0.04814]
[1761811278293,0.96233017,111390.0,111380.0,0.04814]
[1761811279195,0.9865521,111390.0,111380.0,0.04814]
[1761811279389,0.9865521,111390.0,111380.0,0.06205]
[1761811279691,0.9865521,111390.0,111380.0,0.05905]
[1761811279893,0.9865521,111390.0,111380.0,0.06105]
[1761811281198,0.9865521,111390.0,111380.0,0.003]
[1761811281399,1.14622158,111390.0,111380.0,0.003]
[1761811281598,0.9865521,111390.0,111380.0,0.003]
[1761811281898,0.9865521,111390.0,111380.0,0.06105]
[1761811281899,0.65285017,111390.0,111380.0,0.06105]
[1761811282099,0.86234948,111390.0,111380.0,0.06105]
[1761811283105,0.36324,111390.0,111380.0,0.06105]
[1761811283602,0.67268,111390.0,111380.0,0.06105]
[1761811284493,0.83234948,111390.0,111380.0,0.06105]
[1761811285098,0.67146,111390.0,111380.0,0.06105]
[1761811285298,0.67268,111390.0,111380.0,0.06105]
[1761811285501,0.67268,111390.0,111380.0,0.22071948]
[1761811285707,0.67268,111390.0,111380.0,0.06105]
[1761811285885,0.36324,111390.0,111380.0,0.22071948]
[1761811286090,0.67154,111390.0,111380.0,0.22071948]
[1761811286402,0.67276,111390.0,111380.0,0.22071948]
[1761811286603,0.3608,111390.0,111380.0,0.31050588]
[1761811287105,0.30344767,111390.0,111380.0,0.34544025]
[1761811287286,0.69458193,111400.0,111390.0,0.04414]
[1761811287490,0.67036,111400.0,111390.0,0.21771948]
[1761811287691,0.69458193,111400.0,111390.0,0.82039948]
[1761811287885,0.69458193,111400.0,111390.0,0.91017868]
[1761811288697,0.69458193,111400.0,111390.0,0.1505092]
[1761811288991,0.69458193,111400.0,111390.0,0.30749868]
[1761811289193,0.69458193,111400.0,111390.0,0.31017868]
[1761811290101,0.69458193,111400.0,111390.0,0.1478292]
[1761811290306,0.69702193,111400.0,111390.0,0.21771948]
[1761811290803,0.69580193,111400.0,111390.0,0.21771948]
[1761811291005,0.69702193,111400.0,111390.0,0.21771948]
[1761811291311,0.69702193,111400.0,111390.0,0.05805]
[1761811291500,0.85669141,111400.0,111390.0,0.05805]
[1761811291809,0.88898257,111400.0,111390.0,0.05805]
[1761811292608,0.69702193,111400.0,111390.0,0.05805]
[1761811293497,0.69458193,111400.0,111390.0,0.21771948]
[1761811294002,0.69458193,111400.0,111390.0,0.30749798]
[1761811294913,0.69458193,111400.0,111390.0,0.21771948]
[1761811295313,0.69702193,111400.0,111390.0,0.21771948]
[1761811295512,0.54713141,111400.0,111390.0,0.05805]
[1761811295696,0.52290948,111400.0,111380.0,0.04616437]
[1761811295896,0.83262948,111390.0,111380.0,0.08945437]
[1761811297415,0.67296,111390.0,111380.0,0.08945437]
[1761811298218,0.67296,111390.0,111380.0,0.09145437]
[1761811298511,0.67296,111390.0,111380.0,0.09245437]
[1761811299612,0.67296,111390.0,111380.0,0.09145437]
[1761811299910,0.67296,111390.0,111380.0,0.09245437]
[1761811300105,0.67296,111390.0,111380.0,0.03525437]
[1761811300310,1.03762426,111390.0,111380.0,0.003]
[1761811300899,0.67296,111390.0,111380.0,0.05975]
[1761811302911,0.67296,111390.0,111380.0,0.09200437]
[1761811303614,1.03376,111390.0,111380.0,0.09200437]
[1761811306012,1.05376,111390.0,111380.0,0.09200437]
[1761811306818,1.05376,111390.0,111380.0,0.03525437]
[1761811308317,1.38842426,111390.0,111380.0,0.03525437]
[1761811308617,1.40000184,111390.0,111380.0,0.03525437]
[1761811308818,1.39732184,111390.0,111380.0,0.003]
[1761811309219,1.38842426,111390.0,111380.0,0.003]
[1761811310102,1.39736308,111390.0,111380.0,0.003]
[1761811310305,1.41264619,111390.0,111380.0,0.003]
[1761811312216,1.41264619,111390.0,111380.0,0.05975]
[1761811312217,1.17792262,111390.0,111380.0,0.05975]
[1761811312414,1.03376,111390.0,111380.0,0.09200437]
[1761811318222,1.03376,111390.0,111380.0,0.03525437]
[1761811318429,1.03376,111390.0,111380.0,0.05625437]
[1761811318728,1.03376,111390.0,111380.0,0.09200437]
[1761811320322,1.37842426,111390.0,111380.0,0.03525437]
[1761811320744,1.98110426,111390.0,111380.0,0.03525437]
[1761811320912,1.40259211,111390.0,111380.0,0.0594902]
[1761811321223,1.40527211,111390.0,111380.0,0.02723583]
[1761811322010,1.5052128,111390.0,111380.0,0.02723583]
[1761811324027,2.1052128,111390.0,111380.0,0.02723583]
[1761811325023,2.1025328,111390.0,111380.0,0.02723583]
[1761811328027,2.1052128,111390.0,111380.0,0.02723583]
[1761811333128,2.1025328,111390.0,111380.0,0.02723583]
[1761811333330,1.96757626,111390.0,111380.0,0.02723583]
[1761811335225,1.96757626,111390.0,111380.0,0.08482583]
[1761811335434,0.75820785,111390.0,111380.0,0.08482583]
[1761811335621,1.04372,111390.0,111380.0,0.08482583]
[1761811336129,0.73404,111390.0,111380.0,0.08482583]
[1761811336331,1.04372,111390.0,111380.0,0.1170802]
[1761811337331,1.24342772,111390.0,111380.0,0.1170802]
[1761811338932,1.24342772,111390.0,111380.0,0.11707403]
[1761811339233,1.04372,111390.0,111380.0,0.11707403]
[1761811339436,1.20344775,111390.0,111380.0,0.11707403]
[1761811340536,1.19344775,111390.0,111380.0,0.09284437]
[1761811342535,1.19344775,111390.0,111380.0,0.25257212]
[1761811342732,1.19340775,111390.0,111380.0,0.25257212]
[1761811343338,1.19340775,111390.0,111380.0,0.09284437]
[1761811346534,1.19340775,111390.0,111380.0,0.25257212]
[1761811347842,1.19340775,111390.0,111380.0,0.09284437]
[1761811349343,1.22340775,111390.0,111380.0,0.09284437]
[1761811350141,1.3831355,111390.0,111380.0,0.03525437]
[1761811350346,1.40730335,111390.0,111380.0,0.02722991]
[1761811352846,1.19328775,111390.0,111380.0,0.09284437]
[1761811353242,1.23328775,111390.0,111380.0,0.09284437]
[1761811354833,1.23328775,111390.0,111380.0,0.07128437]
[1761811355750,1.23328775,111390.0,111380.0,0.06326473]
[1761811356248,1.23328775,111390.0,111380.0,0.08451473]
[1761811358350,1.25745145,111390.0,111380.0,0.08451473]
[1761811358552,1.25741145,111390.0,111380.0,0.08451473]
[1761811360753,1.0576837,111390.0,111380.0,0.24424248]
[1761811360945,1.21741145,111390.0,111380.0,0.24424248]
[1761811361145,1.0576837,111390.0,111380.0,0.24424248]
[1761811362142,1.21741145,111390.0,111380.0,0.24424248]
[1761811362556,1.19324775,111390.0,111380.0,0.24424248]
[1761811362941,1.19324775,111390.0,111380.0,0.08451473]
[1761811364861,1.19324775,111390.0,111380.0,0.24424248]
[1761811365158,0.47164775,111390.0,111380.0,0.08451473]
[1761811365460,1.19324775,111390.0,111380.0,0.08451473]
[1761811368563,1.21741145,111390.0,111380.0,0.08451473]
[1761811371157,1.3971392,111390.0,111380.0,0.003]
[1761811371362,1.52937105,111390.0,111380.0,0.003]
[1761811371554,1.49707989,111390.0,111380.0,0.003]
[1761811372258,0.00244,111380.0,111370.0,0.02423473]
[1761811372465,0.00244,111370.0,111360.0,0.02423473]
[1761811372654,1.0221355,111370.0,111360.0,0.02423473]
[1761811372855,0.86240775,111370.0,111360.0,0.02423473]
[1761811373355,0.86040775,111370.0,111360.0,0.02423473]
[1761811373952,1.02918719,111370.0,111360.0,0.02423473]
[1761811374258,1.15328045,111370.0,111360.0,0.02423473]
[1761811374463,1.12912788,111370.0,111360.0,0.02423473]
[1761811374658,1.12812788,111370.0,111360.0,0.02423473]
[1761811374862,1.15728045,111370.0,111360.0,0.02423473]
[1761811375368,1.13312788,111370.0,111360.0,0.02423473]
[1761811375574,1.15928045,111370.0,111360.0,0.02423473]
[1761811376170,1.13512788,111370.0,111360.0,0.02423473]
[1761811376370,1.03518719,111370.0,111360.0,0.02423473]
[1761811377964,1.03518719,111370.0,111350.0,0.05719176]
[1761811377965,1.06747835,111370.0,111350.0,0.05719176]
[1761811378157,0.7043909,111360.0,111350.0,0.05719176]
[1761811378357,0.7343909,111360.0,111350.0,0.05719176]
[1761811379462,0.7142555,111360.0,111350.0,0.05719176]
[1761811379664,0.7383909,111360.0,111350.0,0.05719176]
[1761811380460,0.70432,111360.0,111350.0,0.24115424]
[1761811380667,0.83404775,111360.0,111350.0,0.24115424]
[1761811381266,0.83504775,111360.0,111350.0,0.24115424]
[1761811382171,0.3658,111360.0,111350.0,0.24115424]
[1761811382368,0.83504775,111360.0,111350.0,0.24115424]
[1761811383461,0.83504775,111360.0,111350.0,0.21691951]
[1761811384674,0.83500775,111360.0,111350.0,0.24115424]
[1761811385867,0.67528,111360.0,111350.0,0.24115424]
[1761811386169,0.3658,111360.0,111350.0,0.24115424]
[1761811386370,0.67532,111360.0,111350.0,0.24115424]
[1761811387974,0.67532,111360.0,111350.0,0.21691951]
[1761811389080,0.67532,111360.0,111350.0,0.30673181]
[1761811389770,0.67532,111360.0,111350.0,0.21691951]
[1761811390972,0.3658,111360.0,111350.0,0.21691951]
[1761811391184,0.67528,111360.0,111350.0,0.21691951]
[1761811393272,0.67528,111360.0,111350.0,0.14700406]
[1761811393477,0.3658,111360.0,111350.0,0.30678606]
[1761811393680,0.67524,111360.0,111350.0,0.93370079]
[1761811394479,0.67524,111360.0,111350.0,0.77391879]
[1761811394684,0.67524,111360.0,111350.0,0.93370079]
[1761811394868,0.67524,111360.0,111350.0,0.77391879]
[1761811395073,0.67124,111360.0,111350.0,0.93370079]
[1761811395272,0.67424,111360.0,111350.0,0.93370079]
[1761811397080,0.67424,111360.0,111350.0,0.93102079]
[1761811397270,0.67424,111360.0,111350.0,0.50150243]
[1761811397271,0.3648,111360.0,111350.0,0.50150243]
[1761811397471,0.001,111360.0,111350.0,0.34172043]
[1761811397771,0.001,111360.0,111350.0,0.62172043]
[1761811397979,0.001,111360.0,111350.0,0.78150243]
[1761811398181,0.36024,111370.0,111360.0,0.1468942]
[1761811398479,0.3849354,111380.0,111370.0,0.1468861]
[1761811398480,0.6944554,111380.0,111370.0,0.1468861]
[1761811398676,0.6944554,111380.0,111370.0,0.3093481]
[1761811398865,0.3608,111380.0,111370.0,0.33354722]
[1761811399476,0.6944554,111390.0,111380.0,0.146878]
[1761811399672,0.6944554,111390.0,111380.0,0.30934]
[1761811399879,0.6944554,111390.0,111380.0,0.30666]
[1761811401477,0.6954554,111390.0,111380.0,0.30666]
[1761811402177,0.6954554,111390.0,111380.0,0.216872]
[1761811403676,0.67132,111390.0,111380.0,0.27332549]
[1761811404392,0.67132,111390.0,111380.0,0.33085912]
[1761811405089,0.67132,111390.0,111380.0,0.24107112]
[1761811407095,0.67132,111390.0,111380.0,0.33085912]
[1761811407294,0.67132,111390.0,111380.0,0.24107112]
[1761811407890,0.990884,111390.0,111380.0,0.02419912]
[1761811408197,0.831102,111390.0,111370.0,0.04586912]
[1761811408495,0.520582,111380.0,111370.0,0.08128912]
[1761811409992,0.520582,111380.0,111370.0,0.02419912]
[1761811410494,0.520582,111380.0,111370.0,0.04586912]
[1761811410693,0.520582,111380.0,111370.0,0.02419912]
[1761811411094,0.520582,111380.0,111370.0,0.04586912]
[1761811413608,0.743044,111380.0,111350.0,0.03236613]
[1761811413896,0.743044,111380.0,111350.0,0.00011176]
[1761811413897,1.0652994,111360.0,111350.0,0.00011176]
[1761811414200,1.1252994,111360.0,111350.0,0.00011176]
[1761811414901,1.22524009,111360.0,111350.0,0.00311176]
[1761811415401,1.22924009,111360.0,111350.0,0.00011176]
[1761811415578,1.22924009,111360.0,111330.0,0.01349]
[1761811415579,1.23192009,111360.0,111330.0,0.03516]
[1761811415786,0.881382,111340.0,111330.0,0.01349]
[1761811415985,0.91036669,111340.0,111330.0,0.01349]
[1761811416585,0.90847618,111340.0,111330.0,0.01349]
[1761811416980,0.90947618,111340.0,111330.0,0.01349]
[1761811417188,0.90947618,111340.0,111320.0,0.0584]
[1761811417495,0.830342,111330.0,111320.0,0.0584]
[1761811417997,0.67056,111330.0,111320.0,0.0584]
[1761811419399,0.830342,111330.0,111320.0,0.0584]
[1761811421603,0.67056,111330.0,111320.0,0.0584]
[1761811432001,0.3608,111330.0,111320.0,0.218182]
[1761811432195,0.67052,111330.0,111320.0,0.218182]
[1761811437005,0.3608,111330.0,111320.0,0.218182]
[1761811437212,0.67048,111330.0,111320.0,0.218182]
[1761811437905,0.67048,111330.0,111320.0,0.0584]
[1761811442798,0.830262,111330.0,111320.0,0.01349]
[1761811443002,0.9043974,111330.0,111320.0,0.03488]
[1761811443306,0.9043974,111330.0,111320.0,0.01264]
[1761811443805,1.06427202,111330.0,111300.0,0.09065437]
[1761811444009,0.7216,111310.0,111300.0,0.09065437]
[1761811444315,1.19124915,111310.0,111300.0,0.09065437]
[1761811444515,1.03146715,111310.0,111300.0,0.09065437]
[1761811444718,1.21538455,111310.0,111300.0,0.0584]
[1761811445018,1.05560255,111310.0,111300.0,0.0584]
[1761811445219,1.03146715,111310.0,111300.0,0.0584]
[1761811445610,1.03146715,111310.0,111300.0,0.0634]
[1761811446220,1.03146715,111310.0,111300.0,0.223182]
[1761811446716,1.03146715,111310.0,111300.0,0.0634]
[1761811448217,0.72170715,111310.0,111300.0,0.0634]
[1761811448412,1.03146715,111310.0,111300.0,0.0634]
[1761811451314,1.19124915,111310.0,111300.0,0.01849]
[1761811451514,1.22538455,111310.0,111300.0,0.005]
[1761811452412,1.32800524,111310.0,111280.0,0.0562]
[1761811452612,0.881382,111290.0,111280.0,0.0562]
[1761811452914,1.03146086,111290.0,111280.0,0.0562]
[1761811453313,1.03146086,111290.0,111280.0,0.215982]
[1761811454320,1.03146086,111290.0,111280.0,0.0562]
[1761811454909,1.03146086,111290.0,111280.0,0.0582]
[1761811455323,1.03146086,111290.0,111280.0,0.21818562]
[1761811455620,1.19144648,111290.0,111280.0,0.21818562]
[1761811456009,1.19144648,111290.0,111280.0,0.0582]
[1761811456205,1.19144648,111290.0,111280.0,0.21818562]
[1761811456924,1.03146086,111290.0,111280.0,0.21818562]
[1761811458722,1.19144648,111290.0,111280.0,0.21818562]
[1761811460326,1.19144648,111290.0,111280.0,0.01464]
[1761811460518,1.20144648,111290.0,111280.0,0.002]
[1761811460823,1.20144648,111290.0,111280.0,0.05726]
[1761811460824,0.89168648,111290.0,111280.0,0.05726]
[1761811461121,1.20140648,111290.0,111280.0,0.21724562]
[1761811461726,1.20140648,111290.0,111280.0,0.21624562]
[1761811461928,1.19140648,111290.0,111280.0,0.21624562]
[1761811462224,1.19176648,111290.0,111280.0,0.21624562]
[1761811462417,1.19476648,111290.0,111280.0,0.21624562]
[1761811462719,1.19476648,111290.0,111280.0,0.21524562]
[1761811463027,1.03578086,111290.0,111280.0,0.21524562]
[1761811463328,1.19576648,111290.0,111280.0,0.05526]
[1761811463525,1.19576648,111290.0,111280.0,0.21524562]
[1761811464029,1.03578086,111290.0,111280.0,0.21524562]
[1761811464330,1.19576648,111290.0,111280.0,0.21524562]
[1761811466025,1.19576648,111290.0,111280.0,0.05526]
[1761811466718,0.88568648,111290.0,111280.0,0.05526]
[1761811466924,1.19572648,111290.0,111280.0,0.05526]
[1761811468229,0.88568648,111290.0,111280.0,0.05526]
[1761811468429,1.19572648,111290.0,111280.0,0.05526]
[1761811468624,1.03574086,111290.0,111280.0,0.05526]
[1761811468826,1.19572648,111290.0,111280.0,0.05526]
[1761811470536,1.4325275,111290.0,111270.0,0.00011092]
[1761811470848,0.3608,111280.0,111270.0,0.05537092]
[1761811471037,0.52078562,111280.0,111270.0,0.21535654]
[1761811472034,0.83186562,111280.0,111270.0,0.05537092]
[1761811472334,0.83182562,111280.0,111270.0,0.05537092]
[1761811473037,0.83182562,111280.0,111270.0,0.21535654]
[1761811474220,0.83182562,111280.0,111270.0,0.05537092]
[1761811475937,0.52178562,111280.0,111270.0,0.21535654]
[1761811476231,0.83182562,111280.0,111270.0,0.21535654]
[1761811476938,0.83182562,111280.0,111270.0,0.05537092]
[1761811477237,0.83182562,111280.0,111270.0,0.21535654]
[1761811477634,0.3618,111280.0,111270.0,0.21535654]
[1761811477937,0.67184,111280.0,111270.0,0.21535654]
[1761811479430,0.83178562,111280.0,111270.0,0.21535654]
[1761811479639,0.83178562,111280.0,111270.0,0.05537092]
[1761811479841,0.83178562,111280.0,111270.0,0.21535654]
[1761811481524,0.6718,111280.0,111270.0,0.21535654]
[1761811483738,0.3618,111280.0,111270.0,0.21535654]
[1761811484044,0.83178562,111280.0,111270.0,0.01286092]
[1761811484342,0.83178562,111280.0,111270.0,0.21596654]
[1761811484539,0.6718,111280.0,111270.0,0.21596654]
[1761811486142,0.83178562,111280.0,111270.0,0.21596654]
[1761811486344,0.3618,111280.0,111270.0,0.21596654]
[1761811486545,0.67184,111280.0,111270.0,0.21596654]
[1761811487043,0.83182562,111280.0,111270.0,0.21596654]
[1761811487240,0.67184,111280.0,111270.0,0.21596654]
[1761811487633,0.83182562,111280.0,111270.0,0.21596654]
[1761811488039,0.3618,111280.0,111270.0,0.21596654]
[1761811488245,0.67184,111280.0,111270.0,0.21596654]
[1761811489937,0.67188,111280.0,111270.0,0.21596654]
[1761811491755,0.3618,111280.0,111270.0,0.30584224]
[1761811491955,0.3618,111280.0,111270.0,0.49808223]
[1761811492246,0.3618,111280.0,111270.0,0.50076223]
[1761811492449,0.67184,111280.0,111270.0,0.50076223]
[1761811493153,0.3618,111280.0,111270.0,0.50076223]
[1761811493359,0.66684,111280.0,111270.0,0.54909285]
[1761811494646,0.66584,111280.0,111270.0,0.54909285]
[1761811495056,0.66584,111280.0,111270.0,0.55009285]
[1761811495749,0.66584,111280.0,111270.0,0.54641285]
[1761811495944,0.66584,111280.0,111270.0,0.54741285]
[1761811496446,0.31004,111280.0,111270.0,0.51515848]
[1761811496840,0.67084,111280.0,111270.0,0.3391576]
[1761811497740,0.3608,111280.0,111270.0,0.49914322]
[1761811497942,0.6708,111280.0,111270.0,0.46950786]
[1761811498240,0.36090086,111290.0,111280.0,0.1464179]
[1761811498439,0.67086086,111290.0,111280.0,0.49870997]
[1761811499659,0.67286086,111290.0,111280.0,0.49870997]
[1761811500459,0.67286086,111290.0,111280.0,0.49870987]
[1761811501354,0.36290086,111290.0,111280.0,0.49870987]
[1761811501545,0.67290086,111290.0,111280.0,0.49870987]
[1761811502146,0.67190086,111290.0,111280.0,0.49870987]
[1761811502544,0.31110086,111290.0,111280.0,0.49870987]
[1761811502751,0.67190086,111290.0,111280.0,0.49870987]
[1761811504346,0.31110086,111290.0,111280.0,0.49870987]
[1761811504548,0.67190086,111290.0,111280.0,0.49870987]
[1761811504757,0.31110086,111290.0,111280.0,0.49870987]
[1761811504964,0.31102086,111290.0,111280.0,0.49870987]
[1761811505258,0.67182086,111290.0,111280.0,0.49870987]
[1761811506441,0.36190086,111290.0,111280.0,0.49870987]
[1761811506655,0.67182086,111290.0,111280.0,0.40884207]
[1761811506848,0.83180648,111290.0,111280.0,0.24885645]
[1761811507051,0.67182086,111290.0,111280.0,0.21653562]
[1761811507361,0.67182086,111290.0,111280.0,0.46638894]
[1761811507560,0.67182086,111290.0,111280.0,0.30640332]
[1761811507750,0.67182086,111290.0,111280.0,0.46638894]
[1761811507952,0.67182086,111290.0,111280.0,0.30640332]
[1761811510561,0.67182086,111290.0,111280.0,0.21653562]
[1761811510757,0.67174086,111290.0,111280.0,0.49870977]
[1761811511654,0.36190086,111290.0,111280.0,0.49870977]
[1761811511960,0.67174086,111290.0,111280.0,0.49870977]
[1761811512146,0.67178086,111290.0,111280.0,0.49870977]
[1761811512347,0.36190086,111290.0,111280.0,0.49870977]
[1761811512654,0.31094086,111290.0,111280.0,0.49970977]
[1761811512860,0.31094086,111290.0,111280.0,0.50238977]
[1761811513161,0.31094086,111290.0,111280.0,0.49970977]
[1761811513554,0.31094086,111290.0,111280.0,0.49870977]
[1761811513757,0.00110086,111290.0,111280.0,0.66137539]
[1761811514062,0.00010086,111290.0,111280.0,1.27818518]
[1761811514766,0.69478998,111310.0,111300.0,0.1470617]
[1761811515066,0.69478998,111310.0,111300.0,0.46703294]
[1761811515263,0.69478998,111310.0,111300.0,0.1470617]
[1761811515465,0.69478998,111310.0,111300.0,0.30694543]
[1761811516769,0.69578998,111310.0,111300.0,0.1470617]
[1761811516970,0.69578998,111310.0,111300.0,0.30694543]
[1761811517765,0.69878998,111310.0,111300.0,0.30694543]
[1761811518666,0.38890998,111310.0,111300.0,0.30694543]
[1761811518869,0.69874998,111310.0,111300.0,0.30694543]
[1761811520364,0.31384,111310.0,111300.0,0.30694543]
[1761811521072,0.31384,111310.0,111300.0,0.46682916]
[1761811521461,0.004,111310.0,111300.0,0.57682916]
[1761811521770,0.004,111310.0,111300.0,0.57950916]
[1761811522272,0.004,111310.0,111300.0,0.51528578]
[1761811522772,0.003,111310.0,111300.0,0.51528578]
[1761811523074,0.6706,111320.0,111310.0,0.1471544]
[1761811523261,0.6706,111320.0,111310.0,0.33931649]
[1761811524375,0.3128,111320.0,111310.0,0.33931649]
[1761811524773,0.3128,111320.0,111310.0,0.28200649]
[1761811525363,0.3138,111320.0,111310.0,0.28200649]
[1761811526570,0.31376,111320.0,111310.0,0.28200649]
[1761811526763,0.31376,111320.0,111310.0,0.64280649]
[1761811527275,0.004,111320.0,111310.0,0.64280649]
[1761811527476,0.31372,111320.0,111310.0,0.64280649]
[1761811528776,0.004,111320.0,111310.0,0.64280649]
[1761811528965,0.004,111320.0,111310.0,0.12212276]
[1761811528966,0.67452,111320.0,111310.0,0.12212276]
[1761811529168,0.67452,111320.0,111310.0,0.28200649]
[1761811529378,0.67452,111320.0,111310.0,0.24972813]
[1761811529677,0.67452,111320.0,111310.0,0.0898444]
[1761811529879,0.67452,111320.0,111310.0,0.24972813]
[1761811531463,0.31372,111320.0,111310.0,0.24972813]
[1761811532064,0.31372,111320.0,111310.0,1.74972813]
[1761811532568,0.67452,111320.0,111310.0,1.74972813]
[1761811533479,0.31372,111320.0,111310.0,1.74972813]
[1761811533680,0.67452,111320.0,111310.0,1.74972813]
[1761811534681,0.67452,111320.0,111310.0,1.5898444]
[1761811535077,0.67452,111320.0,111310.0,1.74972813]
[1761811535676,0.67452,111320.0,111310.0,1.5]
[1761811536085,0.85440373,111320.0,111300.0,0.0898521]
[1761811536281,0.85440373,111320.0,111290.0,0.12213496]
[1761811536282,0.52068373,111310.0,111290.0,0.12213496]
[1761811536480,0.52068373,111310.0,111290.0,0.03227836]
[1761811536481,0.67048,111300.0,111290.0,0.03227836]
[1761811536682,0.67048,111300.0,111290.0,1.53227836]
[1761811536883,0.67048,111300.0,111290.0,1.62213906]
[1761811537078,0.67048,111300.0,111290.0,1.78202279]
[1761811537376,0.3608,111310.0,111300.0,0.0898527]
[1761811537580,0.67068,111310.0,111300.0,0.44182419]
[1761811539181,0.30992,111310.0,111300.0,0.44182419]
[1761811539674,0.31092,111310.0,111300.0,0.44182419]
[1761811540275,0.31092,111310.0,111300.0,0.44450419]